fUST/lending_fUST_20251104
["ID","MTS","AMOUNT","RATE_DAILY","PERIOD"]
[393091560,1762249843881,-163.080226,0.0003747,15]
[393091562,1762249843890,-163.080226,0.0003747,15]
[393091564,1762249843899,-163.080226,0.0003747,15]
[393091566,1762249843908,-163.08022,0.0003747,15]
[393091568,1762249843917,-500.0,0.00037473,5]
[393091570,1762249843927,-150025.77801261,0.0003748,30]
[393091572,1762249843936,-359.400377,0.0003748,2]
[393091574,1762249843945,-359.400377,0.0003748,2]
[393091576,1762249843955,-359.400377,0.0003748,2]
[393091578,1762249843964,-359.400377,0.0003748,2]
[393091581,1762249843974,-151.0,0.0003748,31]
[393091582,1762249843983,-151.0,0.0003748,31]
[393091585,1762249843992,-285.130013,0.0003748,31]
[393091586,1762249844001,-151.0,0.0003748,31]
[393091588,1762249844010,-151.0,0.0003748,31]
[393091590,1762249844019,-151.0,0.0003748,31]
[393091592,1762249844029,-279.273796,0.0003748,30]
[393091594,1762249844038,-1800.0,0.00037482,20]
[393091596,1762249844048,-186.0,0.00037492,120]
[393091598,1762249844057,-4934.31177111,0.000375,120]
[393091600,1762249844066,-1812.49,0.000375,14]
[393091602,1762249844075,-183.0,0.00037516,7]
[393091604,1762249844084,-183.0,0.00037547,120]
[393091606,1762249844093,-186.0,0.00037575,2]
[393091608,1762249844102,-2008.45513283,0.000376,30]
[393091610,1762249844111,-183.0,0.00037612,2]
[393091612,1762249844120,-505.8823257,0.00037668,5]
[393091614,1762249844129,-704.0934249,0.00037668,5]
[393091616,1762249844138,-183.0,0.00037687,2]
[393091618,1762249844148,-152.0,0.000378,120]
[393091620,1762249844157,-2188.8704506,0.00037884,2]
[393091622,1762249844167,-505.22163031,0.00037899,30]
[393091624,1762249844179,-183.0,0.0003793,2]
[393091626,1762249844189,-20223.1737459,0.00038,2]
[393091628,1762249844198,-1463.28,0.00038,2]
[393091630,1762249844211,-1000.0,0.00038,2]
[393091632,1762249844220,-1000.0,0.00038,2]
[393091635,1762249844229,-1000.0,0.00038,2]
[393091637,1762249844239,-1000.0,0.00038,2]
[393091639,1762249844251,-1000.0,0.00038021,5]
[393091641,1762249844260,-314.5912241,0.00038088,30]
[393091643,1762249844269,-183.48982635,0.000383,120]
[393091645,1762249844278,-173.74164061,0.000383,120]
[393091646,1762249844287,-253.69777731,0.000383,120]
[393091648,1762249844296,-179.90181951,0.000383,120]
[393091650,1762249844305,-200.48735606,0.000383,120]
[393091652,1762249844314,-254.28293245,0.000383,120]
[393091654,1762249844323,-426.41149266,0.000383,120]
[393091656,1762249844331,-831.25301208,0.000383,120]
[393091658,1762249844340,-189.8315672,0.000383,120]
[393091660,1762249844349,-11827.76,0.000383,14]
[393091662,1762249844359,-345.34755499,0.00038538,2]
[393091664,1762249844368,-505.02179154,0.00038568,5]
[393091666,1762249844377,-177.61,0.000386,7]
[393091668,1762249844387,-351.2,0.000386,30]
[393091670,1762249844396,-1000.0,0.0003863,20]
[393091672,1762249844405,-183.0,0.00038654,2]
[393091674,1762249844414,-183.0,0.00038666,2]
[393091676,1762249844423,-521.18370679,0.00038695,2]
[393091678,1762249844433,-1812.49,0.000388,14]
[393091680,1762249844442,-10097.1543726,0.000389,2]
[393091682,1762249844451,-1000.0,0.00038904,20]
[393091684,1762249844460,-155.661543,0.0003894,31]
[393091686,1762249844470,-416.64831577,0.00039,120]
[393091688,1762249844479,-150.0,0.00039,2]
[393091690,1762249844488,-174.85025592,0.00039,10]
[393091692,1762249844498,-339753.7275707,0.00039,120]
[393092104,1762250220082,2000.0,0.000184,2]
[393092123,1762250377314,310.0,0.00018301,2]
[393092969,1762251032504,-1000.0,0.00019626,2]
[393093004,1762251038445,-3789.44,0.00019626,2]
[393093005,1762251038455,-360.42367092,0.00019824,2]
[393093006,1762251038465,-10000.0,0.00020125,2]
[393093007,1762251038475,-150.0,0.00020696,2]
[393093008,1762251038484,-235.039071,0.00021999,2]
[393093009,1762251038495,-378.0,0.00021999,2]
[393093010,1762251038506,-158.14549422,0.00021999,2]
[393093012,1762251038516,-412.65845179,0.00021999,2]
[393093013,1762251038525,-180.0,0.00021999,2]
[393093014,1762251038536,-4400.0,0.00022,7]
[393093016,1762251038546,-3968.17861595,0.00022577,2]
[393093018,1762251038558,-16745.9111101,0.00022577,2]
[393093124,1762251043955,-4.3524877,0.00022577,2]
[393093324,1762251046805,-13147.65418113,0.00022577,2]
[393093326,1762251046816,-150.0,0.00022577,2]
[393093327,1762251046825,-150.0,0.00024459,2]
[393093328,1762251046835,-500.0,0.00024733,2]
[393093329,1762251046844,-427.5324233,0.00024733,2]
[393093330,1762251046853,-474.0,0.00025264,2]
[393093331,1762251046862,-1000.0,0.00025281,2]
[393093332,1762251046871,-1500.0,0.00025829,2]
[393093333,1762251046880,-150.0,0.0002634,2]
[393093334,1762251046889,-2000.0,0.00026377,2]
[393093335,1762251046898,-204.43650263,0.00026848,2]
[393093336,1762251046908,-500.0,0.000281,5]
[393093337,1762251046917,-512.25097809,0.000281,5]
[393093338,1762251046926,-500.0,0.000281,5]
[393093339,1762251046935,-1000.0,0.00028648,5]
[393093340,1762251046945,-1000.0,0.00028648,5]
[393093341,1762251046954,-1000.59109711,0.00029196,5]
[393093342,1762251046963,-1005.86879087,0.00029196,5]
[393093343,1762251046972,-155.661543,0.00029478,20]
[393093344,1762251046983,-177.61,0.000303,7]
[393093345,1762251046991,-155.661543,0.00030767,20]
[393093346,1762251047000,-237.29693224,0.0003188,10]
[393093347,1762251116059,178.6597,0.00013699,2]
[393093349,1762251206387,282.0,0.00037333,120]
[393093351,1762251857698,817.44,0.00032877,120]
[393093358,1762252038153,159.348,0.00032877,120]
[393093364,1762252114741,5620.18243711,0.00037341,60]
[393093378,1762252209826,200.0,0.00037341,30]
[393093397,1762252232678,-178.6597,0.00020187,2]
[393093398,1762252232688,-178.6597,0.00026676,2]
[393093399,1762252232697,-1002.66480538,0.0002748,2]
[393093400,1762252232707,-293.0,0.00031009,2]
[393093401,1762252232716,-1600.0,0.00031009,2]
[393093402,1762252232727,-400.0,0.00031009,2]
[393093403,1762252232737,-7508.22837123,0.0003101,5]
[393093404,1762252232749,-962.65644059,0.0003101,5]
[393093414,1762252238526,-380.89502363,0.0003101,5]
[393093415,1762252238538,-717.12731951,0.0003101,5]
[393093416,1762252238552,-1214.53890209,0.0003101,5]
[393093417,1762252238564,-1469.03890144,0.0003101,5]
[393093418,1762252238576,-749.22306325,0.0003101,5]
[393093419,1762252238588,-80.33815976,0.0003101,5]
[393093420,1762252238599,-388.79725575,0.00031879,3]
[393093421,1762252238622,-106.20274425,0.00031879,3]
[393093422,1762252238632,-331.0,0.0003188,7]
[393093423,1762252238642,-331.0,0.0003188,7]
[393093424,1762252238652,-331.0,0.0003188,7]
[393093425,1762252238662,-280.37282029,0.0003188,7]
[393093426,1762252238672,-331.0,0.0003188,7]
[393093428,1762252238681,-178.6597,0.00033165,2]
[393093430,1762252238691,-3761.30710054,0.00033165,2]
[393093437,1762252240698,-666.34338392,0.00033165,2]
[393093438,1762252240752,-3490.09745514,0.00033165,2]
[393093439,1762252240885,-2514.7965735,0.00033165,2]
[393093465,1762252243822,-1149.2,0.00033165,2]
[393093468,1762252243834,-10921.56956835,0.00033165,2]
[393093473,1762252243877,-13473.00386329,0.00033165,2]
[393093475,1762252243886,-333.0,0.00033386,3]
[393093477,1762252243896,-1692.0,0.00033526,3]
[393093479,1762252243905,-195.49472672,0.0003484,2]
[393093481,1762252243914,-2000.0,0.00036091,15]
[393093483,1762252243924,-202.77922679,0.00036099,15]
[393093485,1762252243934,-6216.06,0.000361,2]
[393093487,1762252243942,-3583.56537783,0.000362,2]
[393093489,1762252243958,-258.47185301,0.000362,2]
[393093492,1762252243969,-418.93857618,0.000362,2]
[393093738,1762252247056,-1955.08419298,0.000362,2]
[393093739,1762252247066,-500.0,0.00036295,5]
[393093740,1762252247076,-162.5518161,0.00036398,60]
[393093741,1762252247086,-500.0,0.00036399,60]
[393093742,1762252247095,-503.34100774,0.00036399,60]
[393093743,1762252247105,-4170.8864037,0.000364,2]
[393093753,1762252897413,16262.74364806,0.00037372,30]
[393093761,1762253374119,244.0,0.00032877,120]
[393093812,1762253431851,-150.0,0.0002149,2]
[393093813,1762253431861,-281.5353016,0.00025376,2]
[393093815,1762253431870,-168.00691405,0.00032195,7]
[393093820,1762253431906,-366.27700627,0.00032195,7]
[393093822,1762253431915,-293.0,0.00033271,3]
[393093824,1762253431924,-400.0,0.00033271,3]
[393093826,1762253431934,-1600.0,0.00033272,3]
[393093828,1762253431943,-20880.2768231,0.00033273,2]
[393093830,1762253431953,-7598.1246717,0.00033273,2]
[393093832,1762253431963,-279.35,0.00035759,14]
[393093834,1762253431972,-194.7013296,0.00035759,30]
[393093836,1762253431981,-163.8562911,0.00035759,30]
[393093838,1762253431990,-299.6635978,0.00035759,30]
[393093840,1762253431999,-320.8320092,0.00035759,30]
[393093842,1762253432009,-154.0159876,0.00035759,30]
[393093845,1762253432018,-591.8931998,0.00035759,30]
[393093848,1762253432027,-157.6940915,0.00035759,30]
[393093851,1762253432037,-163.8562911,0.00035759,30]
[393093854,1762253432046,-299.6635978,0.00035759,30]
[393093858,1762253432056,-190.8362626,0.00035759,30]
[393093862,1762253432065,-591.8931998,0.00035759,30]
[393093864,1762253432075,-153.0,0.00035759,30]
[393093865,1762253432084,-163.8562911,0.00035759,30]
[393093866,1762253432093,-299.6635978,0.00035759,30]
[393093867,1762253432102,-190.8362626,0.00035759,30]
[393093868,1762253432111,-591.8931998,0.00035759,30]
[393093869,1762253432120,-153.0,0.00035759,30]
[393093870,1762253432131,-163.8562911,0.00035759,30]
[393093871,1762253432140,-299.6635978,0.00035759,30]
[393093872,1762253432149,-190.8362626,0.00035759,30]
[393093873,1762253432158,-591.8931998,0.00035759,30]
[393093874,1762253432167,-190.8362626,0.00035759,30]
[393093875,1762253432176,-299.6635978,0.00035759,30]
[393093876,1762253432185,-163.8562911,0.00035759,30]
[393093877,1762253432195,-591.8931998,0.00035759,30]
[393093878,1762253432210,-163.8562911,0.00035759,30]
[393093879,1762253432219,-591.8931998,0.00035759,30]
[393093880,1762253432227,-299.6635978,0.00035759,30]
[393093881,1762253432236,-299.6635978,0.00035759,30]
[393093882,1762253432247,-163.8562911,0.00035759,30]
[393093883,1762253432256,-591.8931998,0.00035759,30]
[393093884,1762253432265,-299.6635978,0.00035759,30]
[393093885,1762253432276,-163.8562911,0.00035759,30]
[393093886,1762253432285,-591.8931998,0.00035759,30]
[393093887,1762253432294,-163.8562911,0.00035759,30]
[393093888,1762253432302,-299.6635978,0.00035759,30]
[393093889,1762253432312,-591.8931998,0.00035759,30]
[393093890,1762253432322,-163.8562911,0.00035759,30]
[393093891,1762253432331,-299.6635978,0.00035759,30]
[393093892,1762253432340,-591.8931998,0.00035759,30]
[393093893,1762253432349,-605.7095847,0.00035759,30]
[393093894,1762253432358,-591.8931998,0.00035759,30]
[393093895,1762253432368,-591.8931998,0.00035759,30]
[393093896,1762253432380,-591.8931998,0.00035759,30]
[393093897,1762253432389,-591.8931998,0.00035759,30]
[393093898,1762253432398,-591.8931998,0.00035759,30]
[393093899,1762253432408,-591.8931998,0.00035759,30]
[393093900,1762253432418,-591.8931998,0.00035759,30]
[393093901,1762253432428,-591.8931998,0.00035759,30]
[393093902,1762253432438,-385.1406824,0.00035759,30]
[393093903,1762253432448,-500.0,0.00035759,30]
[393093904,1762253432457,-279.35,0.00036033,14]
[393093905,1762253432467,-493.01492699,0.00036033,30]
[393093906,1762253432477,-168.0,0.00036221,2]
[393093907,1762253432487,-500.0,0.00036257,5]
[393093908,1762253432496,-279.35,0.00036307,14]
[393093909,1762253432505,-1000.0,0.00036408,2]
[393093910,1762253432515,-502.10980136,0.00036578,5]
[393093911,1762253432524,-500.0,0.00036578,5]
[393093912,1762253432533,-500.0,0.00036578,3]
[393093913,1762253432543,-500.0,0.00036578,5]
[393093914,1762253432553,-500.0,0.00036578,2]
[393093915,1762253432563,-279.35,0.00036581,14]
[393093916,1762253432574,-500.0,0.00036581,30]
[393093917,1762253432583,-500.0,0.00036636,30]
[393093918,1762253432593,-501.47208722,0.00036691,30]
[393093919,1762253432602,-1000.0,0.00036805,5]
[393093920,1762253432611,-279.39493935,0.00036855,14]
[393093921,1762253432620,-155.661543,0.00036986,31]
[393093922,1762253432633,-732.15,0.0003708,10]
[393093923,1762253432642,-3100.0475343,0.00037085,2]
[393093924,1762253432651,-50933.4815871,0.0003709,3]
[393093925,1762253432660,-2980.695859,0.000371,30]
[393093926,1762253432669,-173.74164061,0.000371,120]
[393093927,1762253432678,-190.27333298,0.000371,120]
[393093928,1762253432687,-179.90181952,0.000371,120]
[393093929,1762253432696,-255.84689559,0.000371,120]
[393093930,1762253432706,-200.48735606,0.000371,120]
[393093931,1762253432714,-189.83156721,0.000371,120]
[393093932,1762253432723,-190.71219934,0.000371,120]
[393093933,1762253432732,-500.75180725,0.000371,120]
[393093934,1762253432740,-183.48982634,0.000371,120]
[393093935,1762253432750,-4555.75,0.000371,2]
[393093936,1762253432758,-4555.75,0.000371,2]
[393093937,1762253432767,-4555.75,0.000371,2]
[393093938,1762253432776,-4555.75,0.000371,2]
[393093939,1762253432786,-4555.75,0.000371,2]
[393093940,1762253432796,-4555.75,0.000371,2]
[393093941,1762253432804,-1000.0,0.00037126,5]
[393093942,1762253432813,-503.61024689,0.00037173,5]
[393093943,1762253432822,-500.0,0.00037173,5]
[393093944,1762253432831,-254667.407935,0.0003718,3]
[393093945,1762253432840,-685000.0,0.0003719,2]
[393093946,1762253432849,-4555.75,0.000372,2]
[393093947,1762253432857,-4555.75,0.000372,2]
[393093948,1762253432866,-401.6740159,0.000372,2]
[393093949,1762253432883,-3210.4857345,0.000372,2]
[393093950,1762253432894,-280.32942924,0.000372,2]
[393093983,1762253437754,-300.0,0.000329,2]
[393093985,1762253437764,-663.26082036,0.000372,2]
[393093987,1762253437773,-4555.75,0.000372,2]
[393093989,1762253437783,-600.0,0.0003722,3]
[393093991,1762253437792,-873.8920666,0.00037255,30]
[393093993,1762253437800,-500.0,0.00037273,5]
[393093995,1762253437810,-604.81944738,0.00037273,5]
[393093997,1762253437819,-500.0,0.00037273,5]
[393093999,1762253437828,-151.0,0.00037303,31]
[393094001,1762253437838,-151.0,0.00037303,31]
[393094003,1762253437847,-151.0,0.00037303,31]
[393094004,1762253437856,-244.597522,0.00037303,31]
[393094006,1762253437865,-3000.0,0.00037334,20]
[393094008,1762253437874,-1105.55465565,0.00037341,20]
[393094010,1762253437886,-394.44534435,0.00037341,20]
[393094012,1762253437895,-1500.0,0.00037353,5]
[393094014,1762253437905,-724.11173951,0.00037372,20]
[393094015,1762253437914,-5000.0,0.00037372,20]
[393094017,1762253437923,-5000.0,0.00037372,20]
[393094019,1762253437932,-500.0,0.00037373,5]
[393094021,1762253437942,-500.0,0.00037373,5]
[393094023,1762253437951,-502.66928036,0.0003745,5]
[393094025,1762253437960,-500.0,0.0003745,5]
[393094027,1762253437969,-177.61,0.000376,7]
[393094029,1762253437979,-412.86149981,0.00037614,5]
[393094030,1762253437988,-1000.0,0.00037674,5]
[393094031,1762253437998,-168.0,0.00037739,2]
[393094032,1762253438009,-500.94858803,0.00037821,5]
[393094033,1762253438019,-2964.59459921,0.00037825,2]
[393094040,1762253439911,-5000.0,0.00037372,20]
[393094041,1762253439922,-1694.42491219,0.00037825,2]
[393094042,1762253439932,-1695.3707748,0.00037825,2]
[393094043,1762253439942,-168.0,0.00037889,2]
[393094044,1762253439952,-2000.0,0.00037901,5]
[393094045,1762253439962,-1000.0,0.00037921,5]
[393094046,1762253439972,-626.96846464,0.00037921,5]
[393094047,1762253439982,-160.0,0.00037927,2]
[393094048,1762253439992,-500.0,0.00038128,5]
[393094049,1762253440002,-173.74164061,0.000382,120]
[393094050,1762253440011,-190.27333298,0.000382,120]
[393094051,1762253440020,-255.84689559,0.000382,120]
[393094052,1762253440030,-189.83156721,0.000382,120]
[393094053,1762253440040,-190.71219934,0.000382,120]
[393094054,1762253440049,-500.75180725,0.000382,120]
[393094055,1762253440059,-183.48982634,0.000382,120]
[393094056,1762253440068,-168.0,0.00038285,2]
[393094057,1762253440078,-2500.0,0.00038449,5]
[393094058,1762253440088,-1039.5677697,0.00038841,2]
[393094059,1762253440098,-378.2883525,0.00038841,2]
[393094060,1762253440108,-1449.99,0.000389,14]
[393094061,1762253440125,-500.0,0.00038973,5]
[393094062,1762253440140,-247.55065751,0.00038973,5]
[393094063,1762253440153,-500.0,0.00038973,5]
[393094064,1762253440166,-500.0,0.00038973,5]
[393094065,1762253440181,-500.0,0.00038973,5]
[393094066,1762253440190,-500.0,0.00038973,5]
[393094067,1762253440200,-500.79824525,0.00038973,5]
[393094068,1762253440215,-305.0726428,0.00038973,5]
[393094069,1762253440225,-500.0,0.00038973,5]
[393094070,1762253440235,-183.98569578,0.00038973,5]
[393094071,1762253440246,-500.0,0.00038973,5]
[393094072,1762253440255,-500.0,0.00038973,5]
[393094073,1762253440265,-531.33638971,0.00038973,5]
[393094074,1762253440274,-150.0,0.00038973,5]
[393094075,1762253440284,-1396.16,0.0003899,10]
[393094076,1762253440293,-3000.0,0.00038997,5]
[393094077,1762253440303,-151.0,0.00038999,120]
[393094078,1762253440312,-297.76425221,0.00038999,120]
[393094079,1762253440322,-250.0,0.00038999,120]
[393094080,1762253440333,-151.0,0.00038999,120]
[393094081,1762253440343,-316.65743201,0.00038999,120]
[393094082,1762253440353,-223.81845765,0.00038999,120]
[393094083,1762253440363,-250.0,0.00038999,120]
[393094084,1762253440374,-151.0,0.00038999,120]
[393094085,1762253440386,-151.0,0.00038999,120]
[393094086,1762253440397,-250.0,0.00038999,120]
[393094087,1762253440408,-151.0,0.00038999,120]
[393094088,1762253440419,-156.587,0.00038999,120]
[393094089,1762253440429,-151.0,0.00038999,120]
[393094090,1762253440440,-250.0,0.00038999,120]
[393094091,1762253440450,-1000.0,0.00038999,120]
[393094092,1762253440460,-302.58888524,0.00038999,120]
[393094093,1762253440470,-162.380719,0.00038999,120]
[393094094,1762253440480,-250.0,0.00038999,120]
[393094095,1762253440491,-151.0,0.00038999,120]
[393094096,1762253440501,-250.0,0.00038999,120]
[393094097,1762253440511,-168.3888056,0.00038999,120]
[393094098,1762253440522,-151.0,0.00038999,120]
[393094099,1762253440532,-275.98776433,0.00038999,120]
[393094100,1762253440542,-207.65486281,0.00038999,120]
[393094101,1762253440553,-151.0,0.00038999,120]
[393094102,1762253440564,-151.0,0.00038999,120]
[393094103,1762253440574,-151.0,0.00038999,120]
[393094104,1762253440584,-209.40437684,0.00038999,120]
[393094105,1762253440594,-269.82171069,0.00038999,120]
[393094106,1762253440605,-222.28270258,0.00038999,120]
[393094107,1762253440615,-59793.04113747,0.00039,120]
[393094108,1762253440628,-260.1249995,0.00039,120]
[393094109,1762253440639,-9938.59997823,0.00039,120]
[393094110,1762253441095,-18302.5431959,0.00039,120]
[393094111,1762253441110,-11733.82511962,0.00039,120]
[393094140,1762253442912,-300.0,0.000329,2]
[393094142,1762253442922,-18287.22670823,0.00039,120]
[393094144,1762253442931,-151.0,0.00039,120]
[393094146,1762253442941,-151.0,0.00039,120]
[393094148,1762253442950,-151.0,0.00039,120]
[393094150,1762253442960,-151.0,0.00039,60]
[393094152,1762253442969,-151.0,0.00039,2]
[393094153,1762253442979,-151.0,0.00039,2]
[393094154,1762253442988,-151.0,0.00039,120]
[393094155,1762253442998,-1000.0,0.00039178,20]
[393094156,1762253443009,-168.0,0.00039209,2]
[393094157,1762253443018,-7096.66,0.000394,14]
[393094158,1762253443027,-190.27333298,0.000394,120]
[393094159,1762253443037,-255.84689559,0.000394,120]
[393094160,1762253443046,-190.71219934,0.000394,120]
[393094161,1762253443056,-500.75180725,0.000394,120]
[393094162,1762253443066,-1000.0,0.00039452,20]
[393094163,1762253443075,-155.661543,0.0003948,20]
[393094164,1762253443084,-1000.0,0.00039521,5]
[393094165,1762253443093,-1000.0,0.00039521,5]
[393094166,1762253443103,-500.98228793,0.00039521,5]
[393094169,1762253443112,-1000.0,0.00039521,5]
[393094171,1762253443121,-500.0,0.00039521,5]
[393094173,1762253443131,-500.0,0.00039521,5]
[393094175,1762253443140,-250.0,0.00039521,5]
[393094176,1762253443149,-3500.0,0.00039545,5]
[393094177,1762253443158,-178.6597,0.00039654,2]
[393094178,1762253443167,-200.0,0.0003967,120]
[393094179,1762253443177,-1000.0,0.00039726,20]
[393094180,1762253443186,-500.0,0.00039862,15]
[393094181,1762253443195,-501.40456731,0.00039973,5]
[393094182,1762253443205,-257.7860095,0.00039973,5]
[393094183,1762253443217,-20018.54704152,0.0004,2]
[393094184,1762253443226,-282.0,0.0004,16]
[393094185,1762253443235,-206829.15740861,0.0004,120]
[393094186,1762253443244,-151.0,0.0004,120]
[393094187,1762253443254,-151.0,0.0004,120]
[393094188,1762253443264,-151.0,0.0004,120]
[393094189,1762253443272,-151.0,0.0004,60]
[393094190,1762253443282,-151.0,0.0004,2]
[393094191,1762253443292,-151.0,0.0004,2]
[393094192,1762253443301,-151.0,0.0004,120]
[393094193,1762253443310,-503.16175686,0.00040021,30]
[393094194,1762253443319,-1500.0,0.00040068,5]
[393094195,1762253443328,-350.0,0.00040068,5]
[393094196,1762253443337,-275.94197236,0.00040093,5]
[393094197,1762253443346,-503.0,0.00040372,120]
[393094198,1762253443355,-155.661543,0.000405,20]
[393094199,1762253443365,-153.0,0.00040542,30]
[393094200,1762253443374,-500.0,0.00040573,5]
[393094201,1762253443384,-500.0,0.00040573,5]
[393094202,1762253443393,-500.0,0.00040573,5]
[393094203,1762253443402,-500.64243665,0.00040573,5]
[393094204,1762253443412,-500.0,0.00040573,5]
[393094205,1762253443421,-152.0,0.000406,120]
[393094206,1762253443430,-190.27333298,0.000406,120]
[393094207,1762253443439,-255.84689559,0.000406,120]
[393094208,1762253443449,-190.71219934,0.000406,120]
[393094209,1762253443458,-500.75180725,0.000406,120]
[393094210,1762253443467,-2000.0,0.00040616,5]
[393094211,1762253443476,-450.0,0.00040616,5]
[393094212,1762253443485,-500.0,0.00040824,5]
[393094213,1762253443494,-1000.0,0.00040932,120]
[393094214,1762253443504,-1000.0,0.00041121,10]
[393094215,1762253443513,-1000.0,0.00041121,10]
[393094216,1762253443522,-500.98220529,0.00041121,10]
[393094217,1762253443531,-1000.0,0.00041164,7]
[393094218,1762253443540,-550.0,0.00041164,10]
[393094219,1762253443549,-210.72,0.000412,30]
[393094220,1762253443558,-1449.99,0.000412,14]
[393094221,1762253443568,-1000.0,0.00041205,120]
[393094222,1762253443577,-3100.04753428,0.00041215,2]
[393094223,1762253443586,-3787.86,0.00041369,14]
[393094224,1762253443596,-500.92677704,0.00041371,10]
[393094225,1762253443606,-504.0,0.00041372,120]
[393094226,1762253443615,-4776.85,0.00041454,14]
[393094227,1762253443623,-1000.0,0.00041479,120]
[393094228,1762253443635,-1500.0,0.00041669,10]
[393094229,1762253443644,-1381.40049954,0.00041669,10]
[393094230,1762253443654,-650.0,0.00041712,10]
[393094231,1762253443663,-1000.0,0.00041753,120]
[393094232,1762253443672,-255.84689559,0.000418,120]
[393094233,1762253443682,-500.75180725,0.000418,120]
[393094234,1762253443691,-160.0,0.00041962,3]
[393094235,1762253443700,-155.661543,0.00041985,7]
[393094236,1762253443709,-4264.14231932,0.00042,120]
[393094237,1762253443719,-177.61,0.00042,14]
[393094238,1762253443728,-170.61,0.00042002,14]
[393094239,1762253443738,-4770.02,0.00042002,14]
[393094240,1762253443747,-1000.0,0.00042027,120]
[393094241,1762253443757,-155.661543,0.00042142,2]
[393094242,1762253443766,-3781.04,0.000422,14]
[393094243,1762253443775,-472.45402741,0.00042217,10]
[393094244,1762253443783,-750.0,0.0004226,10]
[393094245,1762253443792,-1000.0,0.00042301,120]
[393094246,1762253443801,-204.9435,0.000425,120]
[393094247,1762253443810,-200.0,0.000425,120]
[393094248,1762253443819,-7096.66,0.000425,14]
[393094249,1762253443828,-201.0,0.0004253,60]
[393094250,1762253443837,-1000.0,0.00042575,120]
[393094251,1762253443847,-200.0,0.00042723,120]
[393094252,1762253443856,-850.0,0.00042808,10]
[393094253,1762253443865,-1000.0,0.00042849,120]
[393094254,1762253443873,-6157.65,0.00042914,14]
[393094255,1762253443883,-5349.12,0.00042914,14]
[393094256,1762253443893,-1000.0,0.00043123,120]
[393094257,1762253443902,-160.0,0.00043214,4]
[393094258,1762253443911,-494.9861,0.0004322,30]
[393094259,1762253443920,-530.97819323,0.00043356,10]
[393094260,1762253443929,-1000.0,0.00043397,120]
[393094261,1762253443938,-152.0,0.000434,120]
[393094262,1762253443947,-10025.64941337,0.000435,120]
[393094263,1762253443956,-1449.99,0.000435,14]
[393094264,1762253443965,-179.60076228,0.00043534,30]
[393094265,1762253443974,-1575.89,0.00043561,14]
[393094266,1762253443984,-1639.89,0.00043672,14]
[393094267,1762253443993,-177.0,0.00044,90]
[393094268,1762253444002,-177.0,0.0004411,90]
[393094269,1762253444011,-500.0,0.00044131,30]
[393094270,1762253444020,-622.36,0.00044166,14]
[393094271,1762253444029,-210.72,0.000442,30]
[393094272,1762253444037,-166.9,0.00044354,120]
[393094273,1762253444046,-507.0,0.00044372,120]
[393094274,1762253444055,-19405.57,0.000444,14]
[393094275,1762253444065,-189.12333395,0.0004441,120]
[393094276,1762253444074,-160.0,0.00044466,5]
[393094277,1762253444083,-1262.18,0.000447,42]
[393094278,1762253444091,-166.9,0.0004484,120]
[393094279,1762253444100,-200.0,0.000449,120]
[393094280,1762253444109,-155.661543,0.00044999,60]
[393094281,1762253444118,-1811.16845551,0.00045,120]
[393094282,1762253444127,-50006.36541664,0.00045,120]
[393094283,1762253444137,-201.16074771,0.00045,120]
[393094284,1762253444146,-1028.59450976,0.00045,2]